[Event "DFMMLV 2024"]
[Site "Braunfels"]
[Date "2024.05.31"]
[Round "2.6"]
[White "Wagner, Margarethe"]
[Black "Rosmait, Emily"]
[Result "1-0"]
[ECO "C90"]
[WhiteElo "2011"]
[BlackElo "1896"]
[Annotator "RC"]
[PlyCount "115"]
[EventDate "2024.05.30"]
[EventType "team-tourn"]
[EventCountry "GER"]
[SourceTitle "playchess.com"]
[Source "ChessBase"]
[SourceQuality "1"]
[TimeControl "40/5400+30:1800+30"]

1. e4 {[%emt 0:00:02]} e5 {[%emt 0:00:06]} 2. Nf3 {[%emt 0:00:06]} Nc6 {[%emt 0:00:04]} 3. Bb5 {[%emt 0:00:06]} a6 {[%emt 0:00:08]} 4. Ba4 {[%emt 0:00:06]} Be7 {[%emt 0:00:31]} 5. O-O {[%emt 0:00:57]} b5 {[%emt 0:00:42]} 6. Bb3 {[%emt 0:00:07]} d6 {[%emt 0:00:12]} 7. a4 {[%emt 0:02:55]} Bb7 {[%emt 0:04:51]} 8. c3 {[%emt 0:03:29]} Na5 {[%emt 0:04:04]} 9. Bc2 {[%emt 0:00:09]} Nf6 {[%emt 0:02:26]} 10. Re1 {[%emt 0:06:05]} c5 {[%emt 0:02:35]} 11. d4 {[%emt 0:06:55]} Qc7 {[%emt 0:01:14]} 12. d5 {[%emt 0:03:47]} O-O {[%emt 0:17:32]} 13. b4 {[%emt 0:11:24]} cxb4 {[%emt 0:05:44]} 14. cxb4 {[%emt 0:00:19]} Rfc8 {[%emt 0:01:06]} 15. Ra2 {[%emt 0:13:56]} Nc4 {[%emt 0:01:16]} 16. a5 {[%emt 0:02:54]} h6 {[%emt 0:05:36]} 17. h3 {[%emt 0:05:44]} Nh7 {[%emt 0:01:48]} 18. Bd3 {[%emt 0:03:42]} Qd8 {[%emt 0:08:23]} 19. Rc2 {[%emt 0:04:37]} Ng5 {[%emt 0:04:10]} 20. Nxg5 {[%emt 0:08:41]} Bxg5 {[%emt 0:00:09]} 21. Bxg5 {[%emt 0:05:40]} Qxg5 {[%emt 0:00:11]} 22. Qg4 {[%emt 0:00:46]} Qxg4 {[%emt 0:08:10]} 23. hxg4 {[%emt 0:00:05]} Kf8 {[%emt 0:00:11]} 24. Ree2 {[%emt 0:10:24]} Ke7 {[%emt 0:01:53]} 25. Rc3 {[%emt 0:00:42]} Kd8 {[%emt 0:08:27]} 26. Rec2 {[%emt 0:00:26]} f6 {[%emt 0:04:02]} 27. Bxc4 {[%emt 0:04:44]} Rxc4 {[%emt 0:00:51]} 28. Rxc4 {[%emt 0:00:04]} bxc4 {[%emt 0:00:06]} 29. Rxc4 {[%emt 0:00:06]} Rc8 {[%emt 0:07:03]} 30. Nd2 {[%emt 0:01:45]} Rc7 {[%emt 0:00:05]} 31. f3 {[%emt 0:00:48]} Bc8 {[%emt 0:00:19]} 32. Rxc7 {[%emt 0:00:30]} Kxc7 {[%emt 0:00:01]} 33. Nc4 {[%emt 0:00:27]} Bd7 {[%emt 0:01:02]} 34. Kf2 {[%emt 0:00:26]} Bb5 {[%emt 0:00:56]} 35. Ne3 {[%emt 0:01:43]} g6 {[%emt 0:00:45]} 36. Ke1 {[%emt 0:02:21]} Bd3 {[%emt 0:05:29]} 37. Kd2 {[%emt 0:00:29]} Bb5 {[%emt 0:00:07]} 38. g3 {[%emt 0:00:16]} Kd8 {[%emt 0:01:49]} 39. Ng2 {[%emt 0:00:34]} Ke7 {[%emt 0:03:51]} 40. Nh4 {[%emt 0:00:39]} Kf7 {[%emt 0:01:10]} 41. Ke3 {[%emt 0:09:19]} Be8 {[%emt 0:07:31]} 42. Ng2 {[%emt 0:02:34]} Ke7 {[%emt 0:00:51]} 43. Ne1 {[%emt 0:03:49]} Bb5 {[%emt 0:01:03]} 44. Nc2 {[%emt 0:06:26]} Kd8 {[%emt 0:00:07]} 45. Na3 {[%emt 0:00:27]} Bf1 {[%emt 0:02:07]} 46. f4 {[%emt 0:03:40]} Kd7 {[%emt 0:07:22]} 47. Nb1 {[%emt 0:01:04]} Bh3 {[%emt 0:04:10]} 48. Kf3 {[%emt 0:00:23]} Bf1 {[%emt 0:00:59]} 49. Nd2 {[%emt 0:00:05]} Bb5 {[%emt 0:00:41]} 50. Ke3 {[%emt 0:00:17]} Kd8 {[%emt 0:00:24]} 51. Nf3 {[%emt 0:00:33]} Bd7 {[%emt 0:01:25]} 52. g5 {[%emt 0:00:52]} hxg5 {[%emt 0:01:41]} 53. fxg5 {[%emt 0:00:08]} f5 {[%emt 0:01:32]} 54. Nh4 {[%emt 0:00:09]} fxe4 {[%emt 0:04:59]} 55. Nxg6 {[%emt 0:00:20]} Ke8 {[%emt 0:00:44]} 56. Nh4 {[%emt 0:02:09]} Kf7 {[%emt 0:00:55]} 57. Kxe4 {[%emt 0:01:22]} Kg7 {[%emt 0:02:22]} 58. Nf5+ {[%emt 0:01:23]} 1-0

[Event "DFMMLV 2024"]
[Site "Braunfels"]
[Date "2024.05.31"]
[Round "2.7"]
[White "Freter, Anke"]
[Black "Horvath, Maria"]
[Result "1-0"]
[ECO "C00"]
[WhiteElo "1918"]
[BlackElo "1929"]
[Annotator "RC"]
[PlyCount "89"]
[EventDate "2024.05.30"]
[EventType "team-tourn"]
[EventCountry "GER"]
[SourceTitle "playchess.com"]
[Source "ChessBase"]
[SourceQuality "1"]
[TimeControl "40/5400+30:1800+30"]

1. e4 {[%emt 0:00:01]} e6 {[%emt 0:00:09]} 2. d3 {[%emt 0:00:44]} d5 {[%emt 0:00:24]} 3. Nc3 {[%emt 0:00:20]} Nf6 {[%emt 0:01:04]} 4. Qe2 {[%emt 0:03:10]} d4 {[%emt 0:04:38]} 5. Nd1 {[%emt 0:00:47]} c5 {[%emt 0:08:20]} 6. g3 {[%emt 0:03:38]} e5 {[%emt 0:01:32]} 7. Bg2 {[%emt 0:01:40]} Nc6 {[%emt 0:02:18]} 8. f4 {[%emt 0:02:42]} Bd6 {[%emt 0:13:49]} 9. f5 {[%emt 0:01:37]} Bd7 {[%emt 0:00:58]} 10. g4 {[%emt 0:08:32]} Qc7 {[%emt 0:01:20]} 11. g5 {[%emt 0:02:25]} Ng8 {[%emt 0:00:12]} 12. Nf3 {[%emt 0:06:52]} O-O-O {[%emt 0:09:22]} 13. Nf2 {[%emt 0:08:24]} f6 {[%emt 0:04:10]} 14. h4 {[%emt 0:11:59]} Kb8 {[%emt 0:06:16]} 15. h5 {[%emt 0:04:35]} h6 {[%emt 0:06:48]} 16. gxh6 {[%emt 0:03:17]} Nxh6 {[%emt 0:00:12]} 17. Nh4 {[%emt 0:00:58]} Nf7 {[%emt 0:11:46]} 18. Ng6 {[%emt 0:03:09]} Rh7 {[%emt 0:01:32]} 19. Ng4 {[%emt 0:01:57]} Be8 {[%emt 0:04:14]} 20. Kf2 {[%emt 0:07:53]} Be7 {[%emt 0:01:00]} 21. a3 {[%emt 0:02:49]} Nd6 {[%emt 0:00:20]} 22. Bd2 {[%emt 0:01:19]} Bf7 {[%emt 0:01:47]} 23. h6 {[%emt 0:03:59]} Rg8 {[%emt 0:02:26]} 24. hxg7 {[%emt 0:01:19]} Rgxg7 {[%emt 0:03:15]} 25. Rxh7 {[%emt 0:06:59]} Rxh7 {[%emt 0:00:07]} 26. Bh6 {[%emt 0:01:25]} Qd8 {[%emt 0:03:30]} 27. Rh1 {[%emt 0:00:55]} Qe8 {[%emt 0:00:30]} 28. Nxe7 {[%emt 0:00:27]} Qxe7 {[%emt 0:00:09]} 29. Bf8 {[%emt 0:00:26]} Qxf8 {[%emt 0:01:08]} 30. Rxh7 {[%emt 0:00:01]} Bg8 {[%emt 0:02:52]} 31. Rh6 {[%emt 0:01:05]} Ne8 {[%emt 0:00:09]} 32. Qf3 {[%emt 0:01:20]} c4 {[%emt 0:00:05]} 33. Rh1 {[%emt 0:01:39]} cxd3 {[%emt 0:02:08]} 34. Qxd3 {[%emt 0:00:24]} Qc5 {[%emt 0:00:20]} 35. Rh8 {[%emt 0:02:49]} Ne7 {[%emt 0:00:31]} 36. Bf1 {[%emt 0:00:41]} a6 {[%emt 0:00:39]} 37. Nh6 {[%emt 0:00:21]} Nd6 {[%emt 0:02:57]} 38. Nxg8 {[%emt 0:01:04]} Nexf5 {[%emt 0:03:05]} 39. exf5 {[%emt 0:02:13]} e4 {[%emt 0:00:31]} 40. Nxf6+ {[%emt 0:00:12]} Ka7 {[%emt 0:00:12]} 41. Nxe4 {[%emt 0:30:38]} Qxf5+ {[%emt 0:31:09]} 42. Ke1 {[%emt 0:01:30]} Nxe4 {[%emt 0:01:20]} 43. Bg2 {[%emt 0:00:51]} Qf2+ {[%emt 0:00:14]} 44. Kd1 {[%emt 0:00:36]} Ng3 {[%emt 0:00:00]} 45. Qf3 {[%emt 0:00:00]} 1-0

[Event "DFMMLV 2024"]
[Site "Braunfels"]
[Date "2024.05.31"]
[Round "2.9"]
[White "Voicu-Jagodzinsky, Carmen"]
[Black "Korenova, Martina"]
[Result "1-0"]
[ECO "B08"]
[WhiteElo "2228"]
[BlackElo "2152"]
[Annotator "RC"]
[PlyCount "73"]
[EventDate "2024.05.30"]
[EventType "team-tourn"]
[EventCountry "GER"]
[SourceTitle "playchess.com"]
[Source "ChessBase"]
[SourceQuality "1"]
[TimeControl "40/5400+30:1800+30"]

1. e4 {[%emt 0:00:02]} d6 {[%emt 0:00:39]} 2. d4 {[%emt 0:00:07]} Nf6 {[%emt 0:00:12]} 3. Nc3 {[%emt 0:00:06]} g6 {[%emt 0:00:20]} 4. Nf3 {[%emt 0:00:20]} Bg7 {[%emt 0:04:15]} 5. h3 {[%emt 0:00:32]} O-O {[%emt 0:00:43]} 6. Be3 {[%emt 0:00:42]} e5 {[%emt 0:04:41]} 7. Bd3 {[%emt 0:03:42]} Nbd7 {[%emt 0:07:09]} 8. dxe5 {[%emt 0:04:57]} dxe5 {[%emt 0:02:24]} 9. Qd2 {[%emt 0:02:45]} Re8 {[%emt 0:03:25]} 10. O-O {[%emt 0:02:51]} Nf8 {[%emt 0:08:48]} 11. Rfd1 {[%emt 0:03:38]} c6 {[%emt 0:05:42]} 12. a4 {[%emt 0:01:27]} Qc7 {[%emt 0:03:05]} 13. a5 {[%emt 0:02:37]} Ne6 {[%emt 0:05:15]} 14. Ne2 {[%emt 0:02:51]} Nxe4 {[%emt 0:14:21]} 15. Bxe4 {[%emt 0:00:57]} f5 {[%emt 0:00:26]} 16. Ng5 {[%emt 0:11:34]} fxe4 {[%emt 0:06:16]} 17. Ng3 {[%emt 0:02:04]} Nd4 {[%emt 0:07:20]} 18. Qb4 {[%emt 0:16:28]} Rf8 {[%emt 0:15:21]} 19. c3 {[%emt 0:04:40]} h6 {[%emt 0:02:35]} 20. Qc4+ {[%emt 0:05:57]} Kh8 {[%emt 0:00:16]} 21. cxd4 {[%emt 0:00:20]} hxg5 {[%emt 0:00:16]} 22. Nxe4 {[%emt 0:00:38]} g4 {[%emt 0:01:42]} 23. d5 {[%emt 0:04:13]} Qf7 {[%emt 0:01:31]} 24. Nd6 {[%emt 0:06:37]} Qf6 {[%emt 0:00:52]} 25. Nxc8 {[%emt 0:00:30]} cxd5 {[%emt 0:00:30]} 26. Rxd5 {[%emt 0:00:52]} Raxc8 {[%emt 0:00:34]} 27. Qxg4 {[%emt 0:00:23]} Rc2 {[%emt 0:01:05]} 28. Rad1 {[%emt 0:03:35]} Qf5 {[%emt 0:01:39]} 29. Qh4+ {[%emt 0:00:41]} Kg8 {[%emt 0:00:06]} 30. b4 {[%emt 0:04:30]} Bf6 {[%emt 0:01:25]} 31. Qg3 {[%emt 0:02:35]} Rc4 {[%emt 0:01:36]} 32. Bxa7 {[%emt 0:01:40]} Bh4 {[%emt 0:00:30]} 33. Qxe5 {[%emt 0:00:52]} Bxf2+ {[%emt 0:00:11]} 34. Bxf2 {[%emt 0:00:04]} Qxf2+ {[%emt 0:00:04]} 35. Kh1 {[%emt 0:00:17]} Rxb4 {[%emt 0:01:38]} 36. Rd7 {[%emt 0:01:06]} Rf7 {[%emt 0:00:18]} 37. Qe8+ {[%emt 0:00:58]} 1-0

[Event "DFMMLV 2024"]
[Site "Braunfels"]
[Date "2024.05.31"]
[Round "2.10"]
[White "Peglau, Dora"]
[Black "Kulovana, Eva"]
[Result "1-0"]
[ECO "E05"]
[WhiteElo "2002"]
[BlackElo "2165"]
[Annotator "RC"]
[PlyCount "113"]
[EventDate "2024.05.30"]
[EventType "team-tourn"]
[EventCountry "GER"]
[SourceTitle "playchess.com"]
[Source "ChessBase"]
[SourceQuality "1"]
[TimeControl "40/5400+30:1800+30"]

1. d4 {[%emt 0:00:05]} d5 {[%emt 0:00:07]} 2. Nf3 {[%emt 0:00:16]} Nf6 {[%emt 0:00:16]} 3. g3 {[%emt 0:00:22]} e6 {[%emt 0:00:38]} 4. Bg2 {[%emt 0:00:15]} Be7 {[%emt 0:00:27]} 5. c4 {[%emt 0:00:48]} O-O {[%emt 0:00:40]} 6. O-O {[%emt 0:00:19]} dxc4 {[%emt 0:00:37]} 7. Ne5 {[%emt 0:00:45]} Nc6 {[%emt 0:00:50]} 8. Bxc6 {[%emt 0:00:10]} bxc6 {[%emt 0:00:07]} 9. Nxc6 {[%emt 0:00:03]} Qe8 {[%emt 0:00:14]} 10. Nxe7+ {[%emt 0:00:16]} Qxe7 {[%emt 0:00:10]} 11. Qa4 {[%emt 0:00:50]} e5 {[%emt 0:02:41]} 12. dxe5 {[%emt 0:00:20]} Qxe5 {[%emt 0:00:09]} 13. Qxc4 {[%emt 0:00:13]} Be6 {[%emt 0:11:34]} 14. Qd3 {[%emt 0:03:33]} Rfe8 {[%emt 0:20:45]} 15. Nc3 {[%emt 0:03:52]} Nd5 {[%emt 0:07:28]} 16. Nxd5 {[%emt 0:06:01]} Bxd5 {[%emt 0:00:34]} 17. Bf4 {[%emt 0:02:21]} Qh5 {[%emt 0:01:35]} 18. f3 {[%emt 0:02:10]} Bc6 {[%emt 0:06:16]} 19. Rf2 {[%emt 0:03:13]} Bb5 {[%emt 0:10:22]} 20. Qc2 {[%emt 0:02:15]} Re7 {[%emt 0:06:31]} 21. Rd1 {[%emt 0:03:18]} Rae8 {[%emt 0:14:27]} 22. e4 {[%emt 0:05:30]} Bd7 {[%emt 0:10:31]} 23. Rd5 {[%emt 0:06:34]} Qg6 {[%emt 0:02:55]} 24. Bxc7 {[%emt 0:04:17]} Qa6 {[%emt 0:01:15]} 25. Qd3 {[%emt 0:05:36]} Qc8 {[%emt 0:01:08]} 26. Bd6 {[%emt 0:07:07]} Re6 {[%emt 0:00:15]} 27. Rc2 {[%emt 0:00:33]} Qa8 {[%emt 0:00:48]} 28. Rc7 {[%emt 0:03:07]} Bc6 {[%emt 0:00:23]} 29. Rc5 {[%emt 0:02:35]} Bxe4 {[%emt 0:00:23]} 30. fxe4 {[%emt 0:01:03]} Rxe4 {[%emt 0:00:05]} 31. Qd5 {[%emt 0:06:30]} Re1+ {[%emt 0:00:33]} 32. Kg2 {[%emt 0:00:27]} R1e2+ {[%emt 0:00:19]} 33. Kh3 {[%emt 0:00:42]} Qxd5 {[%emt 0:00:19]} 34. Rxd5 {[%emt 0:00:01]} Rxb2 {[%emt 0:00:13]} 35. Re5 {[%emt 0:01:51]} Rd8 {[%emt 0:00:36]} 36. Rd7 {[%emt 0:00:37]} Rc8 {[%emt 0:00:30]} 37. Ree7 {[%emt 0:00:22]} Rf2 {[%emt 0:00:41]} 38. Bf4 {[%emt 0:04:22]} Rf8 {[%emt 0:00:46]} 39. Rxa7 {[%emt 0:00:32]} h6 {[%emt 0:00:29]} 40. a4 {[%emt 0:02:43]} g5 {[%emt 0:00:46]} 41. Be3 {[%emt 0:30:41]} Rf5 {[%emt 0:02:32]} 42. Rac7 {[%emt 0:00:00]} Ra8 {[%emt 0:06:04]} 43. Re4 {[%emt 0:00:00]} Rb8 {[%emt 0:04:54]} 44. Rc5 {[%emt 0:00:00]} Rf1 {[%emt 0:00:28]} 45. Rec4 {[%emt 0:00:00]} Kh7 {[%emt 0:07:37]} 46. Rc8 {[%emt 0:00:00]} Rbb1 {[%emt 0:03:02]} 47. Rc1 {[%emt 0:00:00]} Rfxc1 {[%emt 0:00:34]} 48. Rxc1 {[%emt 0:00:00]} Rb2 {[%emt 0:01:10]} 49. Rf1 {[%emt 0:00:00]} Kg6 {[%emt 0:04:50]} 50. Rf6+ {[%emt 0:00:00]} Kg7 {[%emt 0:00:35]} 51. Rf2 {[%emt 0:00:00]} Rb4 {[%emt 0:00:49]} 52. Ra2 {[%emt 0:00:00]} Re4 {[%emt 0:01:11]} 53. Bf2 {[%emt 0:00:00]} Re6 {[%emt 0:00:27]} 54. a5 {[%emt 0:00:00]} Ra6 {[%emt 0:00:05]} 55. Bb6 {[%emt 0:00:00]} h5 {[%emt 0:00:48]} 56. Rd2 {[%emt 0:00:00]} Ra8 {[%emt 0:00:33]} 57. Rd8 {[%emt 0:00:00]} 1-0

[Event "DFMMLV 2024"]
[Site "Braunfels"]
[Date "2024.05.31"]
[Round "2.11"]
[White "Trunz, Michelle"]
[Black "Steinbacher, Claudia"]
[Result "1-0"]
[ECO "E14"]
[WhiteElo "2048"]
[BlackElo "2027"]
[Annotator "RC"]
[PlyCount "128"]
[EventDate "2024.05.30"]
[EventType "team-tourn"]
[EventCountry "GER"]
[SourceTitle "playchess.com"]
[Source "ChessBase"]
[SourceQuality "1"]
[TimeControl "40/5400+30:1800+30"]

1. d4 {[%emt 0:00:02]} Nf6 {[%emt 0:00:15]} 2. c4 {[%emt 0:00:05]} e6 {[%emt 0:00:11]} 3. Nf3 {[%emt 0:00:04]} b6 {[%emt 0:00:31]} 4. e3 {[%emt 0:00:15]} Bb7 {[%emt 0:00:17]} 5. Bd3 {[%emt 0:00:06]} Be7 {[%emt 0:08:34]} 6. O-O {[%emt 0:00:37]} O-O {[%emt 0:00:10]} 7. b3 {[%emt 0:01:02]} Ne4 {[%emt 0:01:32]} 8. Qc2 {[%emt 0:02:35]} f5 {[%emt 0:00:23]} 9. Nbd2 {[%emt 0:01:43]} Nxd2 {[%emt 1:23:07]} 10. Nxd2 {[%emt 0:00:25]} Nc6 {[%emt 0:00:00]} 11. a3 {[%emt 0:01:03]} Bf6 {[%emt 0:00:00]} 12. Bb2 {[%emt 0:00:45]} Ne7 {[%emt 0:00:00]} 13. f3 {[%emt 0:06:47]} g6 {[%emt 0:00:00]} 14. b4 {[%emt 0:03:43]} Qe8 {[%emt 0:00:00]} 15. Nb3 {[%emt 0:04:05]} d6 {[%emt 0:00:00]} 16. e4 {[%emt 0:04:47]} Bg7 {[%emt 0:00:00]} 17. c5 {[%emt 0:04:14]} bxc5 {[%emt 0:00:00]} 18. bxc5 {[%emt 0:00:39]} d5 {[%emt 0:00:00]} 19. Rfe1 {[%emt 0:02:53]} Qd7 {[%emt 0:00:00]} 20. Qe2 {[%emt 0:04:19]} Rfe8 {[%emt 0:00:00]} 21. exf5 {[%emt 0:02:54]} exf5 {[%emt 0:00:00]} 22. Bb5 {[%emt 0:07:57]} c6 {[%emt 0:00:00]} 23. Bd3 {[%emt 0:00:23]} Bc8 {[%emt 0:00:00]} 24. Bc1 {[%emt 0:05:52]} Kf7 {[%emt 0:00:00]} 25. Bf4 {[%emt 0:02:38]} a5 {[%emt 0:00:00]} 26. a4 {[%emt 0:00:53]} Qb7 {[%emt 0:08:30]} 27. Rab1 {[%emt 0:05:13]} Qb4 {[%emt 0:00:30]} 28. Be5 {[%emt 0:03:31]} Bxe5 {[%emt 0:00:00]} 29. dxe5 {[%emt 0:00:30]} Be6 {[%emt 0:00:00]} 30. Qf2 {[%emt 0:00:30]} Qxa4 {[%emt 0:01:30]} 31. Nd4 {[%emt 0:05:02]} f4 {[%emt 0:00:00]} 32. Rb6 {[%emt 0:21:41]} Rab8 {[%emt 0:00:00]} 33. Reb1 {[%emt 0:02:42]} Rxb6 {[%emt 0:00:00]} 34. cxb6 {[%emt 0:00:00]} Qa3 {[%emt 0:00:00]} 35. Qd2 {[%emt 0:01:38]} g5 {[%emt 0:02:30]} 36. b7 {[%emt 0:01:44]} Rb8 {[%emt 0:00:00]} 37. Qc2 {[%emt 0:02:46]} Rxb7 {[%emt 0:00:00]} 38. Rxb7 {[%emt 0:00:23]} Qa1+ {[%emt 0:00:00]} 39. Qb1 {[%emt 0:01:56]} Qxd4+ {[%emt 0:00:00]} 40. Kf1 {[%emt 0:00:16]} Qxe5 {[%emt 0:00:00]} 41. Bxh7 {[%emt 0:30:54]} Kf6 {[%emt 0:25:32]} 42. Qc2 {[%emt 0:00:00]} Qe3 {[%emt 0:00:00]} 43. Rb3 {[%emt 0:00:00]} Qa7 {[%emt 0:00:00]} 44. Qb2+ {[%emt 0:00:00]} d4 {[%emt 0:00:00]} 45. Rb6 {[%emt 0:00:00]} Qd7 {[%emt 0:00:00]} 46. Be4 {[%emt 0:00:00]} Bc4+ {[%emt 0:00:00]} 47. Kf2 {[%emt 0:00:00]} Ke5 {[%emt 0:00:00]} 48. Qa3 {[%emt 0:00:00]} Qd6 {[%emt 0:00:00]} 49. Qxa5+ {[%emt 0:00:00]} Kf6 {[%emt 0:00:00]} 50. Rb4 {[%emt 0:00:00]} Bb5 {[%emt 0:00:00]} 51. Rb2 {[%emt 0:00:00]} Nd5 {[%emt 0:00:00]} 52. Rd2 {[%emt 0:00:00]} Ne3 {[%emt 0:00:00]} 53. Qa7 {[%emt 0:00:00]} Ke5 {[%emt 0:00:00]} 54. Qg7+ {[%emt 0:00:00]} Qf6 {[%emt 0:00:00]} 55. Qxf6+ {[%emt 0:01:01]} Kxf6 {[%emt 0:00:00]} 56. Rxd4 {[%emt 0:00:03]} Ke5 {[%emt 0:00:00]} 57. Rd8 {[%emt 0:01:11]} c5 {[%emt 0:00:00]} 58. g3 {[%emt 0:00:18]} c4 {[%emt 0:00:00]} 59. gxf4+ {[%emt 0:00:25]} gxf4 {[%emt 0:00:00]} 60. h4 {[%emt 0:00:40]} c3 {[%emt 0:01:40]} 61. h5 {[%emt 0:01:17]} Bc6 {[%emt 0:02:26]} 62. Bd3 {[%emt 0:02:01]} Nf5 {[%emt 0:05:50]} 63. Rc8 {[%emt 0:01:30]} Ne7 {[%emt 0:02:31]} 64. h6 {[%emt 0:00:16]} Kd5 {[%emt 0:06:31]} 1-0

[Event "DFMMLV 2024"]
[Site "Braunfels"]
[Date "2024.05.31"]
[Round "2.12"]
[White "Peglau, Mirjam"]
[Black "Hess, Olena"]
[Result "1-0"]
[ECO "C00"]
[WhiteElo "1948"]
[BlackElo "2041"]
[Annotator "NA RC"]
[PlyCount "51"]
[EventDate "2024.05.30"]
[EventType "team-tourn"]
[EventCountry "GER"]
[SourceTitle "playchess.com"]
[Source "ChessBase"]
[SourceQuality "1"]
[TimeControl "40/5400+30:1800+30"]

1. e4 {[%emt 0:00:07]} e6 {[%emt 0:00:06]} 2. Qe2 {[%emt 0:00:36]} c5 {[%emt 0:01:03]} 3. f4 {[%emt 0:00:30]} Qc7 {[%emt 0:00:56]} 4. d3 {[%emt 0:03:17]} b6 {[%emt 0:00:43]} 5. Nf3 {[%emt 0:02:47]} Bb7 {[%emt 0:02:14]} 6. g3 {[%emt 0:04:27]} Nc6 {[%emt 0:00:57]} 7. c3 {[%emt 0:06:04]} O-O-O {[%emt 0:01:59]} 8. Bg2 {[%emt 0:05:03]} Nf6 {[%emt 0:04:55]} 9. O-O {[%emt 0:05:32]} h5 {[%emt 0:04:04]} 10. a4 {[%emt 0:05:21]} Ng4 {[%emt 0:05:28]} ({Black should play} 10... d5 $14) 11. Na3 {[%emt 0:09:54]} Be7 {[%emt 0:07:12]} 12. Bd2 {[%emt 0:16:38]} h4 {[%emt 0:10:38]} 13. h3 {[%emt 0:00:34]} Nh6 {[%emt 0:00:22]} 14. gxh4 {[%emt 0:04:59]} Rdg8 {[%emt 0:08:15] [#]} 15. a5 $1 {[%emt 0:02:42]} Nxa5 {[%emt 0:03:57]} 16. Nb5 {[%emt 0:00:21]} Qb8 {[%emt 0:03:14]} 17. Nxa7+ {[%emt 0:01:28]} Qxa7 {[%emt 0:03:09]} 18. b4 $16 {[%emt 0:00:07]} f5 {[%emt 0:02:12]} 19. bxa5 {[%emt 0:08:34]} fxe4 {[%emt 0:03:36]} 20. axb6 {[%emt 0:07:47]} Qxb6 {[%emt 0:05:12]} 21. dxe4 {[%emt 0:00:36]} Nf7 {[%emt 0:30:48]} 22. Rfb1 {[%emt 0:01:38]} Qc6 {[%emt 0:00:00]} 23. e5 {[%emt 0:02:28]} Qe4 {[%emt 0:00:00]} 24. Qb5 {[%emt 0:01:03]} Qc6 {[%emt 0:00:00]} 25. Ra8+ {[%emt 0:01:07]} Kc7 {[%emt 0:00:00]} 26. Qa5+ {[%emt 0:00:15]} 1-0

[Event "DFMMLV 2024"]
[Site "Braunfels"]
[Date "2024.05.31"]
[Round "2.13"]
[White "Trunz, Elena"]
[Black "Just, Anita"]
[Result "0-1"]
[ECO "A85"]
[WhiteElo "2107"]
[BlackElo "1884"]
[Annotator "RC"]
[PlyCount "98"]
[EventDate "2024.05.30"]
[EventType "team-tourn"]
[EventCountry "GER"]
[SourceTitle "playchess.com"]
[Source "ChessBase"]
[SourceQuality "1"]
[TimeControl "40/5400+30:1800+30"]

1. c4 {[%emt 0:00:02]} e6 {[%emt 0:00:09]} 2. d4 {[%emt 0:00:42]} d5 {[%emt 0:00:09]} 3. Nc3 {[%emt 0:00:40]} f5 {[%emt 0:00:11]} 4. e3 {[%emt 0:00:44]} Nf6 {[%emt 0:00:15]} 5. Nf3 {[%emt 0:00:35]} c6 {[%emt 0:00:10]} 6. c5 {[%emt 0:01:10]} b6 {[%emt 0:02:50]} 7. b4 {[%emt 0:05:43]} a5 {[%emt 0:09:21]} 8. bxa5 {[%emt 0:00:43]} bxc5 {[%emt 0:00:21]} 9. dxc5 {[%emt 0:02:04]} Bxc5 {[%emt 0:00:48]} 10. Bd2 {[%emt 0:01:23]} Bb4 {[%emt 0:02:10]} 11. Bd3 {[%emt 0:07:30]} O-O {[%emt 0:11:49]} 12. O-O {[%emt 0:00:13]} c5 {[%emt 0:01:55]} 13. Qc2 {[%emt 0:10:04]} Nc6 {[%emt 0:05:19]} 14. Bb5 {[%emt 0:06:32]} Na7 {[%emt 0:07:56]} 15. Be2 {[%emt 0:02:32]} Bxa5 {[%emt 0:03:10]} 16. Rfb1 {[%emt 0:01:52]} Nc6 {[%emt 0:15:58]} 17. a3 {[%emt 0:06:04]} Ne4 {[%emt 0:07:17]} 18. Be1 {[%emt 0:05:55]} Qf6 {[%emt 0:07:30]} 19. Nb5 {[%emt 0:05:55]} Bxe1 {[%emt 0:00:25]} 20. Nxe1 {[%emt 0:00:24]} c4 {[%emt 0:00:50]} 21. Nf3 {[%emt 0:03:12]} f4 {[%emt 0:02:12]} 22. Bxc4 {[%emt 0:07:06]} fxe3 {[%emt 0:06:27]} 23. fxe3 {[%emt 0:00:49]} Ng5 {[%emt 0:02:17]} 24. Be2 {[%emt 0:01:21]} Nxf3+ {[%emt 0:00:08]} 25. Bxf3 {[%emt 0:00:08]} Ne5 {[%emt 0:01:43]} 26. Rf1 {[%emt 0:01:22]} Nxf3+ {[%emt 0:01:06]} 27. gxf3 {[%emt 0:00:25]} Qg5+ {[%emt 0:00:08]} 28. Kh1 {[%emt 0:02:21]} Qxe3 {[%emt 0:00:25]} 29. Rae1 {[%emt 0:00:14]} Qh6 {[%emt 0:02:24]} 30. Qc6 {[%emt 0:02:27]} Ra6 {[%emt 0:02:10]} 31. Qc3 {[%emt 0:02:00]} Bd7 {[%emt 0:01:14]} 32. Nd4 {[%emt 0:03:30]} Qf6 {[%emt 0:01:12]} 33. Qc5 {[%emt 0:06:11]} Rc8 {[%emt 0:01:21]} 34. Qb4 {[%emt 0:01:10]} Rca8 {[%emt 0:03:51]} 35. Nc2 {[%emt 0:06:16]} Be8 {[%emt 0:00:05]} 36. Ra1 {[%emt 0:03:37]} Bh5 {[%emt 0:01:09]} 37. f4 {[%emt 0:01:12]} Bg6 {[%emt 0:00:24]} 38. Ne3 {[%emt 0:02:52]} Ra4 {[%emt 0:00:06]} 39. Qd6 {[%emt 0:01:02]} Be4+ {[%emt 0:01:01]} 40. Kg1 {[%emt 0:01:21]} R4a6 {[%emt 0:00:48]} 41. Qb4 {[%emt 0:02:28]} Qg6+ {[%emt 0:01:12]} 42. Kf2 {[%emt 0:00:07]} Qh5 {[%emt 0:02:03]} 43. Kg1 {[%emt 0:04:33]} e5 {[%emt 0:00:14]} 44. f5 {[%emt 0:00:20]} Qg5+ {[%emt 0:00:17]} 45. Kf2 {[%emt 0:00:27]} d4 {[%emt 0:01:47]} 46. Qb3+ {[%emt 0:02:18]} Kh8 {[%emt 0:00:25]} 47. Nd1 {[%emt 0:01:46]} Qd2+ {[%emt 0:00:16]} 48. Kg3 {[%emt 0:00:44]} Qg2+ {[%emt 0:00:05]} 49. Kh4 Qg4+ {[%emt 0:29:57]} 0-1